bitfinex/quotes_BTCUSD_20260215
["timestamp","ask_amount","ask_price","bid_price","bid_amount"]
[1771142345098,0.0002,70832.0,70827.0,0.07059438]
[1771142345670,0.0002,70832.0,70826.0,0.07059359]
[1771142345927,0.0002,70832.0,70825.0,0.40691026]
[1771142346126,0.0002,70832.0,70826.0,0.07059552]
[1771142347749,0.0002,70832.0,70826.0,0.07059554]
[1771142349443,0.13667508,70832.0,70826.0,0.07059554]
[1771142350063,0.13667508,70832.0,70822.0,0.07059875]
[1771142350266,0.13667508,70832.0,70820.0,0.00012]
[1771142350267,0.13667508,70832.0,70823.0,0.0705967]
[1771142350494,0.13667508,70832.0,70824.0,0.07059691]
[1771142352277,0.13667508,70832.0,70823.0,0.07059661]
[1771142352431,0.13667508,70832.0,70821.0,0.38234975]
[1771142352432,0.13667508,70832.0,70822.0,0.07059767]
[1771142352633,0.13667508,70832.0,70823.0,0.07059853]
[1771142353277,0.13667508,70832.0,70824.0,0.07059751]
[1771142353535,0.13667508,70832.0,70822.0,0.07059767]
[1771142353536,0.13667508,70832.0,70823.0,0.07059813]
[1771142353733,0.13667508,70832.0,70824.0,0.07059749]
[1771142354506,0.13667508,70832.0,70823.0,0.07059816]
[1771142354719,0.13667508,70832.0,70824.0,0.0705974]
[1771142355333,0.13667508,70832.0,70823.0,0.07059819]
[1771142358053,0.13647508,70830.0,70820.0,0.00012]
[1771142358215,0.13647508,70828.0,70812.0,7.052e-05]
[1771142358421,0.07059884,70823.0,70813.0,0.31704195]
[1771142358627,0.20707334,70824.0,70823.0,0.00022]
[1771142358823,0.20707334,70824.0,70813.0,0.3876502]
[1771142359023,0.20707334,70824.0,70816.0,0.31704195]
[1771142359024,0.07059826,70824.0,70816.0,0.31704195]
[1771142359845,0.13647508,70838.0,70820.0,0.00012]
[1771142360045,0.01323346,70837.0,70829.0,0.31704195]
[1771142360208,0.01323346,70836.0,70829.0,0.31704195]
[1771142360522,0.13647508,70838.0,70829.0,0.31704195]
[1771142360722,0.01323274,70837.0,70829.0,0.31704195]
[1771142360952,0.01323274,70836.0,70829.0,0.31704195]
[1771142361154,0.13647508,70838.0,70829.0,0.31704195]
[1771142361380,0.01323279,70837.0,70829.0,0.31704195]
[1771142361584,0.01323279,70836.0,70829.0,0.31704195]
[1771142361782,0.20705935,70838.0,70829.0,0.31704195]
[1771142361985,0.01323279,70837.0,70829.0,0.31704195]
[1771142362183,0.01323279,70836.0,70829.0,0.31704195]
[1771142362388,0.07058462,70837.0,70829.0,0.31704195]
[1771142362681,0.01323303,70836.0,70829.0,0.31704195]
[1771142362868,0.07058462,70837.0,70829.0,0.31704195]
[1771142363008,0.01323303,70836.0,70829.0,0.31704195]
[1771142363222,0.07058462,70837.0,70829.0,0.22451333]
[1771142363427,0.0132335,70836.0,70829.0,0.22451333]
[1771142363627,0.07058462,70837.0,70829.0,0.22451333]
[1771142363830,0.0132335,70836.0,70829.0,0.22451333]
[1771142364033,0.07058462,70837.0,70829.0,0.22451333]
[1771142364234,0.0132335,70836.0,70829.0,0.22451333]
[1771142364433,0.07058462,70837.0,70829.0,0.22451333]
[1771142364661,0.01323415,70836.0,70829.0,0.22451333]
[1771142364872,0.07058462,70837.0,70829.0,0.22451333]
[1771142365071,0.01323415,70836.0,70829.0,0.22451333]
[1771142365273,0.07058462,70837.0,70829.0,0.22451333]
[1771142365496,0.01323505,70836.0,70829.0,0.22451333]
[1771142365703,0.01362069,70840.0,70821.0,0.31704195]
[1771142365704,0.14971013,70835.0,70821.0,0.31704195]
[1771142365942,0.13647508,70835.0,70821.0,0.31704195]
[1771142366130,0.07059015,70832.0,70821.0,0.31704195]
[1771142366341,0.07059015,70832.0,70826.0,0.00022]
[1771142367619,0.07059062,70831.0,70826.0,0.00022]
[1771142368247,0.07059062,70831.0,70826.0,0.31726195]
[1771142368679,0.0002,70836.0,70826.0,0.31726195]
[1771142369052,0.11255393,70853.0,70826.0,0.31726195]
[1771142369053,0.0002562,70845.0,70831.0,0.31704195]
[1771142369284,0.01323732,70844.0,70834.0,0.07058732]
[1771142369450,0.01073732,70843.0,70837.0,0.07058386]
[1771142369650,0.0002562,70845.0,70837.0,0.07058386]
[1771142369651,0.0002562,70845.0,70838.0,0.31704195]
[1771142370071,0.07057769,70844.0,70830.0,0.07071111]
[1771142370259,0.13647508,70843.0,70830.0,0.07071111]
[1771142370464,0.0705786,70843.0,70830.0,0.07071086]
[1771142370685,0.13647508,70842.0,70832.0,0.07058894]
[1771142372579,0.13647508,70842.0,70830.0,0.36399039]
[1771142372580,0.13647508,70842.0,70831.0,0.07059025]
[1771142373243,0.13647508,70842.0,70830.0,0.07071086]
[1771142374022,0.00012,70840.0,70831.0,0.0705898]
[1771142374222,0.13659508,70840.0,70831.0,0.0705898]
[1771142375012,0.13659508,70840.0,70832.0,0.07058949]
[1771142376729,0.13659508,70840.0,70830.0,0.07059057]
[1771142376931,0.13659508,70840.0,70831.0,0.07058997]
[1771142377531,0.13659508,70840.0,70831.0,0.07059032]
[1771142379087,0.13659508,70840.0,70832.0,0.07058946]
[1771142379846,0.13659508,70840.0,70833.0,0.07058829]
[1771142380465,0.13659508,70840.0,70832.0,0.28235719]
[1771142380670,0.13659508,70840.0,70830.0,0.32994255]
[1771142380671,0.00012,70840.0,70837.0,0.07058386]
[1771142380866,0.0004562,70845.0,70834.0,0.07058757]
[1771142381010,0.0004562,70845.0,70841.0,0.30655767]
[1771142381566,0.0004562,70845.0,70841.0,0.37713801]
[1771142381567,0.01322798,70844.0,70841.0,0.37713801]
[1771142381889,0.01322798,70843.0,70841.0,0.37713801]
[1771142382076,0.0004562,70845.0,70841.0,0.37713801]
[1771142382275,0.01322798,70844.0,70841.0,0.37713801]
[1771142382476,0.00012,70850.0,70843.0,0.30604156]
[1771142382687,0.00024976,70850.0,70843.0,0.30604156]
[1771142383202,0.00024976,70850.0,70843.0,0.37661923]
[1771142383412,0.00024976,70850.0,70844.0,0.07057662]
[1771142384567,0.00024976,70850.0,70843.0,0.37661942]
[1771142384835,0.00024976,70850.0,70837.0,0.07058413]
[1771142385007,0.20729714,70850.0,70839.0,0.0705825]
[1771142385446,0.20729714,70850.0,70840.0,0.63952871]
[1771142385679,0.20729714,70850.0,70840.0,0.32977413]
[1771142385910,0.20729714,70850.0,70840.0,0.63952871]
[1771142386354,0.20729714,70850.0,70841.0,0.0705798]
[1771142386355,0.13582484,70850.0,70841.0,0.0705798]
[1771142386704,0.13582484,70850.0,70840.0,0.71023019]
[1771142386705,0.13582484,70850.0,70842.0,0.07057947]
[1771142387087,0.13582484,70850.0,70840.0,0.32989413]
[1771142387088,0.0004422,70850.0,70840.0,0.32989413]
[1771142387450,0.13659216,70850.0,70840.0,0.40047487]
[1771142388264,0.13659216,70850.0,70841.0,0.07058031]
[1771142390344,0.13679216,70850.0,70843.0,0.07057858]
[1771142390575,0.0006422,70850.0,70843.0,0.07057858]
[1771142391009,0.0006422,70850.0,70842.0,0.07057934]
[1771142391263,0.28222954,70865.0,70840.0,0.63964871]
[1771142391264,0.07056642,70856.0,70843.0,0.07057789]
[1771142391459,0.07056689,70855.0,70846.0,0.32977413]
[1771142391672,0.07056689,70855.0,70844.0,0.30975458]
[1771142391673,0.21171762,70855.0,70844.0,0.30975458]
[1771142392582,0.14115073,70855.0,70844.0,0.38033148]
[1771142392786,0.28236851,70860.0,70840.0,0.32989413]
[1771142392787,0.00012,70860.0,70852.0,0.30975458]
[1771142393766,0.0001024,70860.0,70852.0,0.38032398]
[1771142393973,0.0001024,70860.0,70852.0,0.3698518]
[1771142394375,0.01322772,70859.0,70852.0,0.2992824]
[1771142394592,0.01322772,70858.0,70852.0,0.2992824]
[1771142394801,0.01322772,70857.0,70852.0,0.36985168]
[1771142394997,0.01322772,70856.0,70852.0,0.36985168]
[1771142395298,0.28239661,70869.0,70850.0,0.00012]
[1771142395299,0.0001824,70869.0,70850.0,0.00012]
[1771142395504,0.0001824,70869.0,70859.0,0.895851]
[1771142395898,0.0001824,70869.0,70859.0,0.96641332]
[1771142396293,0.0001824,70869.0,70860.0,0.07056137]
[1771142396744,0.0001824,70869.0,70859.0,0.58609642]
[1771142396956,0.00012,70870.0,70860.0,0.30975458]
[1771142397144,0.01272967,70872.0,70862.0,0.07055967]
[1771142397351,0.01285933,70872.0,70863.0,0.38031253]
[1771142397783,0.0001824,70879.0,70864.0,0.28223075]
[1771142398001,0.0001824,70879.0,70869.0,0.29304821]
[1771142398208,0.13614996,70878.0,70869.0,0.29304821]
[1771142398383,0.07054638,70876.0,70869.0,0.29304821]
[1771142399599,0.07054685,70875.0,70869.0,0.29304821]
[1771142400004,0.07054588,70876.0,70869.0,0.29304821]
[1771142400207,0.13614996,70877.0,70869.0,0.29304821]
[1771142400555,0.0001824,70879.0,70869.0,0.29304821]
[1771142400758,0.0001824,70879.0,70869.0,0.29300821]
[1771142400981,0.0001824,70879.0,70869.0,0.67335506]
[1771142401701,0.13614996,70888.0,70872.0,0.38030411]
[1771142401905,0.13614996,70883.0,70873.0,0.07054863]
[1771142402313,0.33836,70890.0,70873.0,0.07054863]
[1771142402314,0.33836,70890.0,70874.0,0.30975458]
[1771142402519,0.07053448,70888.0,70879.0,0.29304821]
[1771142402747,0.13614996,70888.0,70874.0,0.30975458]
[1771142402889,0.13614996,70888.0,70878.0,0.29304821]
[1771142402890,0.07053517,70887.0,70878.0,0.29304821]
[1771142403097,0.00012,70890.0,70878.0,0.29304821]
[1771142403098,0.0706525,70890.0,70878.0,0.29304821]
[1771142403304,0.00012,70890.0,70879.0,0.30975458]
[1771142403930,0.07065186,70890.0,70880.0,0.30975458]
[1771142404137,0.07053414,70888.0,70878.0,0.29304821]
[1771142404344,0.13514996,70887.0,70880.0,0.00012]
[1771142404551,0.02272002,70887.0,70880.0,0.00012]
[1771142404733,0.01632002,70887.0,70880.0,0.00012]
[1771142405586,0.62030137,70897.0,70881.0,0.30975458]
[1771142405587,0.07573499,70896.0,70881.0,0.30975458]
[1771142405797,0.07573499,70896.0,70880.0,0.00012]
[1771142405798,0.07573499,70883.0,70880.0,0.00012]
[1771142406010,0.07573499,70882.0,70880.0,0.00012]
[1771142406221,0.07573499,70882.0,70870.0,0.36371941]
[1771142406222,0.0002,70889.0,70874.0,0.0001638]
[1771142406470,0.07573499,70878.0,70874.0,0.0001638]
[1771142406681,0.0002,70889.0,70874.0,0.0001638]
[1771142406887,0.07573499,70888.0,70879.0,0.29304821]
[1771142407298,0.07053479,70887.0,70879.0,0.29304821]
[1771142407503,0.07053881,70883.0,70877.0,0.29304821]
[1771142407731,0.01318133,70882.0,70875.0,0.30975458]
[1771142407944,0.01318133,70881.0,70874.0,0.0001638]
[1771142408147,0.01318133,70880.0,70874.0,0.0001638]
[1771142408359,0.0002,70889.0,70870.0,0.29316821]
[1771142408562,0.07573499,70885.0,70870.0,0.29316821]
[1771142408771,0.0002,70889.0,70870.0,0.29316821]
[1771142408772,0.07054314,70879.0,70870.0,0.29316821]
[1771142408979,0.07573499,70880.0,70870.0,0.29316821]
[1771142408980,0.0131799,70878.0,70870.0,0.29316821]
[1771142409186,0.0131799,70877.0,70870.0,0.29316821]
[1771142409322,0.0131799,70876.0,70870.0,0.29316821]
[1771142409535,0.07573499,70880.0,70864.0,0.00012966]
[1771142409536,0.28219491,70874.0,70864.0,0.00012966]
[1771142409888,0.30981071,70873.0,70860.0,0.29316821]
[1771142410120,0.07055161,70871.0,70860.0,0.29316821]
[1771142410352,0.07055468,70868.0,70860.0,0.60292279]
[1771142410543,0.07055345,70869.0,70860.0,0.60292279]
[1771142411237,0.07055345,70869.0,70860.0,0.29316821]
[1771142411452,0.29675081,70880.0,70863.0,0.29304821]
[1771142411453,0.07055036,70872.0,70863.0,0.29304821]
[1771142411662,0.01318537,70871.0,70863.0,0.00012958]
[1771142411866,0.01318537,70870.0,70863.0,0.00012958]
[1771142412070,0.08373738,70870.0,70863.0,0.00017458]
[1771142412290,0.28221482,70868.0,70859.0,0.0002685]
[1771142412493,0.01318537,70867.0,70859.0,0.0002685]
[1771142412698,0.08374185,70866.0,70859.0,0.0002685]
[1771142412910,0.01318537,70865.0,70859.0,0.0002685]
[1771142413323,0.08374218,70865.0,70859.0,0.0002685]
[1771142413537,0.08892036,70864.0,70859.0,0.0002685]
[1771142413746,0.07573499,70864.0,70859.0,0.0002685]
[1771142413955,0.07055852,70864.0,70859.0,0.0002685]
[1771142414211,0.07573499,70862.0,70859.0,0.0002685]
[1771142414795,0.07055869,70863.0,70859.0,0.0002685]
[1771142415173,0.07055869,70863.0,70851.0,0.0705698]
[1771142415374,0.07573499,70866.0,70854.0,0.31638172]
[1771142415583,0.01319322,70865.0,70857.0,0.07056434]
[1771142415781,0.01319322,70864.0,70855.0,0.29304821]
[1771142415984,0.07067227,70870.0,70858.0,0.07056296]
[1771142416202,0.07067227,70870.0,70860.0,0.29304821]
[1771142416756,0.00012,70870.0,70860.0,0.27186058]
[1771142416957,0.0705468,70875.0,70863.0,0.07055802]
[1771142417200,0.00012961,70875.0,70865.0,0.0705564]
[1771142417402,0.00012961,70875.0,70864.0,0.07055748]
[1771142417622,0.00012,70880.0,70865.0,0.29304821]
[1771142417852,0.00012,70890.0,70865.0,0.29304821]
[1771142417853,0.00012,70890.0,70876.0,0.38692722]
[1771142418068,0.00012,70890.0,70876.0,0.31638172]
[1771142418264,0.07053548,70887.0,70876.0,0.31638172]
[1771142418686,0.07053283,70889.0,70876.0,0.3869256]
[1771142418909,0.07053417,70888.0,70876.0,0.31638172]
[1771142419124,0.07585499,70890.0,70873.0,0.07054839]
[1771142419336,0.14626958,70888.0,70876.0,0.07054534]
[1771142419539,0.07573499,70888.0,70876.0,0.07054534]
[1771142419724,0.00012,70890.0,70879.0,0.07054253]
[1771142420009,0.00012,70890.0,70879.0,0.07054217]
[1771142420319,0.00012,70890.0,70878.0,0.07054189]
[1771142420550,0.00012,70890.0,70879.0,0.07054275]
[1771142420737,0.0002685,70896.0,70870.0,0.61180626]
[1771142420738,0.0002685,70896.0,70885.0,0.07053617]
[1771142420950,0.0002685,70896.0,70885.0,0.31638172]
[1771142421153,0.07052683,70895.0,70885.0,0.31638172]
[1771142421357,0.0002685,70896.0,70885.0,0.31638172]
[1771142421558,0.0002685,70896.0,70885.0,0.38691819]
[1771142421760,0.0002685,70896.0,70886.0,0.07053549]
[1771142421980,0.0002685,70896.0,70880.0,0.00012]
[1771142421981,0.0002685,70896.0,70880.0,0.32960137]
[1771142422190,0.0002,70890.0,70889.0,0.07053198]
[1771142422401,0.0002685,70896.0,70888.0,0.07053304]
[1771142423051,0.0002685,70896.0,70889.0,0.07053226]
[1771142423247,0.0002685,70896.0,70890.0,0.07053175]
[1771142424307,0.0002685,70896.0,70887.0,0.31638172]
[1771142424512,0.0002685,70896.0,70880.0,0.00012]
[1771142424513,0.07053064,70892.0,70880.0,0.00012]
[1771142424716,0.07573499,70890.0,70880.0,0.00012]
[1771142425755,0.14626684,70890.0,70880.0,0.00012]
[1771142425973,0.07573499,70889.0,70880.0,0.00012]
[1771142426156,0.07053473,70889.0,70880.0,0.00012]
[1771142426358,0.07573499,70888.0,70880.0,0.00012]
[1771142428606,0.07573499,70888.0,70873.0,0.33808]
[1771142428607,0.07573499,70885.0,70873.0,0.07054794]
[1771142428866,0.07573499,70885.0,70874.0,4.5e-05]
[1771142428867,0.07573499,70884.0,70874.0,4.5e-05]
[1771142429446,0.07323499,70883.0,70874.0,4.5e-05]
[1771142429648,0.07323499,70882.0,70874.0,4.5e-05]
[1771142430259,0.07323499,70882.0,70870.0,0.00034]
[1771142430260,0.33808,70885.0,70870.0,0.00034]
[1771142430526,0.31180814,70878.0,70862.0,0.00022]
[1771142430730,0.07323499,70879.0,70862.0,0.07090914]
[1771142430889,0.07323499,70879.0,70866.0,0.07055569]
[1771142431091,0.07323499,70879.0,70867.0,0.07055393]
[1771142431295,0.07054413,70878.0,70866.0,0.31660172]
[1771142431500,0.07054413,70878.0,70866.0,0.00022]
[1771142431702,0.07323499,70879.0,70866.0,0.00022]
[1771142431908,0.07054738,70875.0,70866.0,0.00022]
[1771142432233,0.07323499,70874.0,70866.0,0.00022]
[1771142432683,0.07316446,70874.0,70866.0,0.00022]
[1771142432922,0.31180814,70878.0,70866.0,0.00022]
[1771142433120,0.07055128,70871.0,70866.0,0.00022]
[1771142433324,0.07055543,70867.0,70862.0,0.00034961]
[1771142433526,0.07319972,70865.0,70851.0,0.68655378]
[1771142433721,0.07319972,70865.0,70856.0,0.07056484]
[1771142434021,0.07319972,70865.0,70858.0,0.07056298]
[1771142434257,0.00012,70870.0,70859.0,0.07056187]
[1771142435930,0.00012,70870.0,70858.0,0.07056298]
[1771142436141,0.00012,70870.0,70855.0,0.00022]
[1771142436142,0.07055295,70869.0,70855.0,0.00022]
[1771142436346,0.07055437,70868.0,70855.0,0.07078594]
[1771142436538,0.07055477,70867.0,70855.0,0.07078594]
[1771142437002,0.07051477,70867.0,70855.0,0.07078594]
[1771142437185,0.14371449,70867.0,70855.0,0.07078663]
[1771142437618,0.07319972,70867.0,70858.0,0.07056302]
[1771142437846,0.07319972,70867.0,70855.0,0.00022]
[1771142438426,0.07319972,70867.0,70858.0,0.07056298]
[1771142438749,0.00012,70870.0,70858.0,0.07056298]
[1771142438750,0.07067209,70870.0,70858.0,0.07056298]
[1771142439172,0.14387181,70870.0,70859.0,0.00022]
[1771142439355,0.07067209,70870.0,70859.0,0.00022]
[1771142439550,0.07319972,70869.0,70859.0,0.00022]
[1771142440401,0.00012,70870.0,70862.0,0.07055883]
[1771142442065,0.00012,70870.0,70861.0,0.07055877]
[1771142442728,0.00012,70870.0,70862.0,0.07055966]
[1771142445561,0.00012,70870.0,70861.0,0.07056048]
[1771142446283,0.00012,70870.0,70858.0,0.27890106]
[1771142446478,0.00012,70870.0,70861.0,0.07055968]
[1771142447145,0.00012,70870.0,70861.0,0.07056046]
[1771142447724,0.00032,70870.0,70861.0,0.07056046]
[1771142449844,0.00032,70870.0,70862.0,0.07055967]
[1771142450045,0.00032,70870.0,70861.0,0.07056047]
[1771142450243,0.00028,70870.0,70861.0,0.07056047]
[1771142450769,0.07319972,70869.0,70856.0,0.33816]
[1771142450973,0.07319972,70864.0,70856.0,0.07056472]
[1771142452054,0.07319972,70869.0,70851.0,0.63653928]
[1771142452265,0.07319972,70869.0,70859.0,0.07056177]
[1771142454285,0.14375259,70869.0,70858.0,0.0705636]
[1771142454688,0.07319972,70869.0,70858.0,0.0705636]
[1771142455059,0.07083204,70870.0,70858.0,0.0705636]
[1771142455866,0.14403176,70870.0,70858.0,0.0705636]
[1771142456695,0.0002,70869.0,70858.0,0.0705636]
[1771142457577,0.0002,70869.0,70862.0,0.07055924]
[1771142457788,0.0002,70869.0,70855.0,0.29837928]
[1771142457989,0.0002,70869.0,70859.0,0.07056176]
[1771142458629,0.0002,70869.0,70860.0,0.07056139]
[1771142458799,0.0002,70869.0,70859.0,0.07056239]
[1771142460260,0.0002,70869.0,70858.0,0.07056173]
[1771142460608,0.0002,70869.0,70859.0,0.07056255]
[1771142461947,0.0002,70869.0,70855.0,0.00022]
[1771142461948,0.0002,70869.0,70862.0,0.07055924]
[1771142462177,0.0002,70869.0,70858.0,0.07056288]
[1771142462397,0.0002,70869.0,70859.0,0.07056192]
[1771142462829,0.0002,70869.0,70860.0,0.07056144]
[1771142463027,0.0002,70869.0,70861.0,0.07056057]
[1771142463649,0.0002,70869.0,70862.0,0.07055956]
[1771142464068,8e-05,70870.0,70860.0,0.07055987]
[1771142464069,0.00012,70890.0,70870.0,0.00012]
[1771142464270,0.07319972,70887.0,70875.0,0.0705467]
[1771142464606,0.07319972,70887.0,70877.0,0.07054425]
[1771142465042,0.07319972,70887.0,70881.0,0.07054011]
[1771142465248,0.07305668,70887.0,70879.0,0.07054187]
[1771142466572,0.07305668,70887.0,70876.0,0.33816]
[1771142466789,0.42256188,70964.0,70876.0,0.33816]
[1771142466790,0.0752482,70900.0,70881.0,0.07054076]
[1771142466989,0.0752482,70900.0,70891.0,0.07053081]
[1771142466990,0.0002162,70893.0,70891.0,0.07053081]
[1771142467452,0.0002162,70893.0,70890.0,0.07053175]
[1771142467916,0.0002162,70893.0,70887.0,0.07053479]
[1771142468300,0.0002162,70893.0,70888.0,0.07053379]
[1771142468713,0.0002162,70893.0,70889.0,0.07053242]
[1771142469183,0.0002162,70893.0,70890.0,0.07053165]
[1771142469809,0.0002162,70893.0,70891.0,0.07053081]
[1771142470148,0.0013562,70906.0,70886.0,0.33816]
[1771142470149,0.00012,70910.0,70886.0,0.33816]
[1771142470351,0.00012,70910.0,70900.0,0.29286584]
[1771142470547,0.0732482,70910.0,70901.0,0.07052]
[1771142470781,0.0732482,70910.0,70901.0,0.07052004]
[1771142471797,0.0732482,70910.0,70900.0,0.3633868]
[1771142471798,0.0732482,70910.0,70903.0,0.07051847]
[1771142471998,0.00012,70910.0,70903.0,0.07051847]
[1771142473265,0.00012,70910.0,70905.0,0.07051666]
[1771142473522,0.00012,70910.0,70901.0,0.28471969]
[1771142473750,0.00012,70910.0,70908.0,0.07051308]
[1771142474713,0.00012,70910.0,70903.0,0.28471969]
[1771142474921,0.00012,70910.0,70906.0,0.07051511]
[1771142475366,0.00012,70910.0,70907.0,0.07051416]
[1771142475539,0.00012,70910.0,70906.0,0.07051511]
[1771142475866,0.00012,70910.0,70907.0,0.07051489]
[1771142476606,0.00012,70910.0,70906.0,0.07051583]
[1771142476743,0.00012,70910.0,70900.0,0.57758553]
[1771142476940,0.00012,70910.0,70902.0,0.07051791]
[1771142477151,0.00012,70910.0,70904.0,0.07051718]
[1771142477750,0.30172141,70910.0,70886.0,0.28471969]
[1771142478076,0.30172141,70910.0,70881.0,0.0001269]
[1771142478077,0.28209938,70898.0,70884.0,4.5e-05]
[1771142478272,0.0731282,70890.0,70884.0,0.00017458]
[1771142478855,0.0731282,70889.0,70884.0,0.00017458]
[1771142480006,0.07052708,70895.0,70884.0,0.00017458]
[1771142480179,0.14365528,70895.0,70884.0,0.00017458]
[1771142481422,0.14365621,70894.0,70884.0,0.00017458]
[1771142481981,0.0731282,70894.0,70884.0,0.00017458]
[1771142482193,0.00012,70900.0,70884.0,0.00017458]
[1771142482408,0.0705273,70895.0,70884.0,0.00017458]
[1771142482606,0.0731282,70894.0,70884.0,0.00017458]
[1771142482811,0.0731282,70893.0,70884.0,0.00017458]
[1771142489778,0.03477162,70929.0,70884.0,0.00017458]
[1771142490001,0.0730582,70910.0,70895.0,0.07102584]
[1771142490217,0.00012,70910.0,70909.0,0.07051291]
[1771142490424,0.00012,70910.0,70904.0,0.2820692]
[1771142490632,0.33804,70926.0,70910.0,0.07051117]
[1771142490847,0.0729382,70923.0,70910.0,0.07051191]
[1771142491064,0.0729382,70923.0,70904.0,0.28471969]
[1771142491275,0.07306786,70923.0,70904.0,0.28471969]
[1771142491484,0.30160141,70920.0,70910.0,0.07051122]
[1771142491689,0.0729382,70919.0,70910.0,0.07051191]
[1771142492119,0.0729382,70919.0,70912.0,0.07050914]
[1771142492511,0.07262502,70919.0,70912.0,0.07050914]
[1771142493497,0.07262502,70919.0,70913.0,0.0705082]
[1771142495212,0.07262502,70919.0,70912.0,0.07050914]
[1771142495954,0.07262502,70919.0,70913.0,0.07050846]
[1771142496156,0.07262502,70919.0,70912.0,0.07050914]
[1771142496357,0.07262502,70919.0,70913.0,0.07050886]
[1771142496566,0.07262502,70919.0,70912.0,0.07050914]
[1771142497714,0.07262502,70919.0,70913.0,0.07050865]
[1771142497909,0.07262502,70919.0,70911.0,0.07050896]
[1771142498126,0.07262502,70919.0,70912.0,0.07050988]
[1771142499359,0.07262502,70919.0,70913.0,0.07050875]
[1771142499561,0.07262502,70919.0,70913.0,0.06616143]
[1771142499758,0.07262502,70919.0,70909.0,0.32943568]
[1771142499759,1e-08,70924.0,70923.0,0.07049899]
[1771142500088,0.09032,70944.0,70915.0,0.28471969]
[1771142500089,0.33796,70940.0,70928.0,0.05865454]
[1771142500295,0.07278161,70937.0,70928.0,0.0587842]
[1771142500663,1e-08,70929.0,70928.0,0.0587842]
[1771142504953,1e-08,70929.0,70928.0,0.04983399]
[1771142507065,0.06968212,70940.0,70928.0,0.04983399]
[1771142507242,0.29036495,70938.0,70930.0,0.292449]
[1771142507467,0.29036495,70936.0,70930.0,0.292449]
[1771142507651,0.07278161,70934.0,70928.0,0.04983399]
[1771142508317,0.07278161,70934.0,70928.0,0.00012966]
[1771142508522,0.41982073,70947.0,70928.0,0.00012966]
[1771142508724,0.62828495,70946.0,70936.0,0.292449]
[1771142509029,0.07278161,70945.0,70936.0,0.07048583]
[1771142509226,0.07278161,70945.0,70939.0,0.07048264]
[1771142509430,0.29036495,70945.0,70939.0,0.07048264]
[1771142509740,0.29036495,70942.0,70935.0,0.07048638]
[1771142509891,0.07278161,70941.0,70930.0,0.292449]
[1771142510286,0.07278161,70940.0,70933.0,0.07048831]
[1771142510487,0.07278161,70940.0,70930.0,0.36294004]
[1771142510700,0.07278161,70940.0,70933.0,0.07048806]
[1771142511312,0.07278161,70940.0,70934.0,0.07048764]
[1771142512015,0.07278161,70940.0,70933.0,0.07048873]
[1771142513325,0.07266161,70940.0,70933.0,0.07048873]
[1771142513770,0.29036495,70939.0,70933.0,0.07048873]
[1771142513957,0.07047803,70946.0,70933.0,0.07048873]
[1771142513958,0.07272161,70936.0,70933.0,0.07048873]
[1771142514414,0.07272161,70936.0,70934.0,0.07048771]
[1771142514629,0.07272161,70936.0,70933.0,0.07048873]
[1771142514856,0.07272161,70936.0,70934.0,0.070488]
[1771142515103,0.07272161,70936.0,70933.0,0.0704887]
[1771142515489,0.07272161,70936.0,70932.0,0.07048907]
[1771142516124,0.07272161,70936.0,70933.0,0.07048895]
[1771142516529,0.07272161,70936.0,70932.0,0.07048976]
[1771142516755,0.07272161,70936.0,70931.0,0.07048919]
[1771142516955,0.07272161,70936.0,70933.0,0.07048811]
[1771142517158,0.07272161,70936.0,70932.0,0.07048811]
[1771142518311,0.07272161,70936.0,70932.0,0.07044811]
[1771142518510,0.07272161,70936.0,70932.0,0.07048973]
[1771142518710,0.07272161,70936.0,70931.0,0.07048908]
[1771142519303,0.28736495,70936.0,70926.0,0.292494]
[1771142519479,0.07272161,70933.0,70928.0,0.0706236]
[1771142519944,0.07272161,70933.0,70929.0,0.07049264]
[1771142520352,0.07272161,70933.0,70930.0,0.07049162]
[1771142520682,0.29036495,70933.0,70924.0,4.5e-05]
[1771142520797,0.07272161,70931.0,70924.0,4.5e-05]
[1771142521200,0.07272161,70931.0,70922.0,0.07054403]
[1771142521607,0.00012,70930.0,70920.0,0.29134392]
[1771142521968,0.00012,70930.0,70920.0,0.292449]
[1771142521969,0.07272161,70927.0,70920.0,0.292449]
[1771142522595,0.29036495,70929.0,70912.0,0.00022]
[1771142522807,0.00012,70930.0,70912.0,0.00022]
[1771142522808,0.07050063,70922.0,70912.0,0.00022]
[1771142523009,0.07272161,70921.0,70913.0,0.00018]
[1771142523359,0.0705019,70921.0,70913.0,0.00018]
[1771142523573,0.07272161,70920.0,70913.0,0.00018]
[1771142525809,0.14322364,70920.0,70913.0,0.00018]
[1771142525994,0.07272161,70919.0,70913.0,0.00018]
[1771142527486,0.07050356,70919.0,70913.0,0.00018]
[1771142527698,0.28200146,70922.0,70898.0,1e-08]
[1771142527699,0.29036495,70922.0,70898.0,1e-08]
[1771142527930,0.07272161,70923.0,70880.0,0.27802341]
[1771142527931,0.07272161,70897.0,70890.0,0.292569]
[1771142528704,0.07051714,70905.0,70891.0,0.28773356]
[1771142528935,0.00012,70910.0,70895.0,0.584898]
[1771142529142,0.00012,70910.0,70890.0,0.00012]
[1771142529143,0.07051291,70909.0,70900.0,0.292449]
[1771142529557,0.07284161,70910.0,70900.0,0.292449]
[1771142530002,0.1433537,70910.0,70900.0,0.292449]
[1771142530219,0.00012,70910.0,70901.0,0.28773356]
[1771142531429,0.07063284,70910.0,70901.0,0.28773356]
[1771142531643,0.0705131,70909.0,70901.0,0.28773356]
[1771142533378,0.07049799,70924.0,70900.0,0.292569]
[1771142533600,0.07050178,70921.0,70914.0,0.292449]
[1771142533825,0.07050287,70920.0,70910.0,0.57334433]
[1771142534027,0.07272161,70923.0,70910.0,0.91126433]
[1771142534220,0.0705058,70917.0,70910.0,0.630369]
[1771142534633,0.07050089,70922.0,70910.0,0.70088071]
[1771142534836,0.07050211,70920.0,70910.0,0.630369]
[1771142535259,0.07272161,70921.0,70911.0,0.07051092]
[1771142535464,0.00012956,70924.0,70912.0,0.28089533]
[1771142535604,0.07062778,70924.0,70914.0,0.292449]
[1771142536628,5e-05,70920.0,70914.0,0.29229956]
[1771142536950,5e-05,70920.0,70913.0,0.07050893]
[1771142537597,5e-05,70920.0,70912.0,0.35140501]
[1771142538140,5e-05,70920.0,70913.0,0.28089533]
[1771142538348,0.00012956,70924.0,70910.0,0.630369]
[1771142538555,0.07292161,70941.0,70920.0,0.00012]
[1771142538766,0.07048706,70935.0,70931.0,0.292449]
[1771142539010,0.07048448,70938.0,70928.0,0.28089533]
[1771142539216,0.07048528,70937.0,70928.0,0.28089533]
[1771142539634,0.07048612,70936.0,70928.0,0.28089533]
[1771142539837,0.07048534,70937.0,70928.0,0.28089533]
[1771142540039,0.07048609,70936.0,70928.0,0.28089533]
[1771142540848,0.07048421,70938.0,70928.0,0.28089533]
[1771142541050,0.07048766,70935.0,70928.0,0.28089533]
[1771142541250,0.07272161,70940.0,70928.0,0.28059651]